bitfinex-derivatives/quotes_SOLF0:USTF0_20250207
["timestamp","ask_amount","ask_price","bid_price","bid_amount"]
[1738896181744,0.03933515,194.01,193.87,14.31850086]
[1738896181951,14.31850086,194.02,193.87,14.31850086]
[1738896182148,0.03848975,193.97,193.92,5.1564]
[1738896182346,0.03848975,193.97,193.93,14.31850086]
[1738896182749,0.03848975,193.97,193.92,5.1563]
[1738896183250,0.03848975,193.97,193.91,1.5111]
[1738896184050,0.03848975,193.97,193.89,7.1371013]
[1738896184753,5.19368975,193.97,193.9,5.1568]
[1738896186250,0.03848975,193.97,193.89,7.1371013]
[1738896186455,0.03848975,193.97,193.9,14.31850086]
[1738896187557,0.03848975,193.97,193.96,5.1554]
[1738896187756,0.03848975,193.97,193.9,14.31850086]
[1738896187957,0.03848975,193.97,193.95,5.1556]
[1738896188351,0.03848975,193.97,193.9,14.31850086]
[1738896188556,0.03848975,193.97,193.96,5.1554]
[1738896189958,1.5746,194.06,193.99,5.1544]
[1738896190155,5.1522,194.09,193.96,14.31850086]
[1738896190355,15.91630086,194.11,193.99,14.31850086]
[1738896190660,5.1522,194.08,193.99,14.31850086]
[1738896191163,0.03454982,194.05,194.02,0.03320627]
[1738896192866,5.18764982,194.05,194.02,0.03320627]
[1738896193052,0.03454982,194.05,194.02,0.03320627]
[1738896193762,0.03454982,194.05,194.03,5.1535]
[1738896196264,0.03454982,194.05,194.04,5.1533]
[1738896196460,3.3188,194.16,194.03,1.5787]
[1738896196661,3.3188,194.16,194.05,14.31850086]
[1738896196861,1.6568,194.16,194.05,14.31850086]
[1738896197262,6.7753,194.17,194.04,3.2153]
[1738896197263,5.149,194.21,194.14,5.1506]
[1738896197457,5.149,194.21,194.04,3.2153]
[1738896197458,1.556,194.22,194.11,14.31850086]
[1738896197662,0.03315818,194.19,194.16,0.03957762]
[1738896199768,5.18245818,194.19,194.16,0.03957762]
[1738896202073,0.03315818,194.19,194.16,0.03957762]
[1738896202778,5.18255818,194.19,194.16,0.03957762]
[1738896203073,0.03315818,194.19,194.16,0.03957762]
[1738896203476,0.03315818,194.19,194.11,5.1513]
[1738896204570,0.03315818,194.19,194.13,0.03346196]
[1738896204765,0.03315818,194.19,194.13,5.18416196]
[1738896204969,0.03315818,194.19,194.13,0.03346196]
[1738896205877,0.03315818,194.19,194.13,5.18406196]
[1738896206477,5.18255818,194.19,194.13,0.03346196]
[1738896208267,5.1496,194.18,194.13,0.03346196]
[1738896208979,5.1504,194.15,194.13,0.03346196]
[1738896210577,5.1506,194.14,194.13,0.03346196]
[1738896211171,5.1513,194.12,194.05,5.1528]
[1738896211874,5.1516,194.11,194.04,5.1533]
[1738896212075,14.31850086,194.14,194.04,5.1533]
[1738896212274,14.31850086,194.14,194.02,14.31850086]
[1738896212480,0.03571329,194.11,194.03,5.1535]
[1738896212679,14.35421415,194.11,194.03,5.1535]
[1738896212880,14.35421415,194.11,193.99,14.31850086]
[1738896212881,14.35421415,194.11,194.01,5.1541]
[1738896213080,14.31850086,194.11,194.01,5.1541]
[1738896213282,0.03543513,194.08,194.01,5.1541]
[1738896213577,0.03543513,194.08,193.96,14.31850086]
[1738896213775,14.31850086,194.08,193.96,14.31850086]
[1738896213971,0.03379241,194.04,193.96,14.31850086]
[1738896214680,0.03379241,194.04,193.98,5.1548]
[1738896215181,5.18709241,194.04,193.97,5.1551]
[1738896216485,5.1536,194.03,193.95,5.1554]
[1738896216680,5.1536,194.03,193.93,15.88310086]
[1738896217179,0.03729399,194.0,193.93,15.88310086]
[1738896217778,0.03729399,194.0,193.96,5.1553]
[1738896218979,0.03729399,194.0,193.96,14.31850086]
[1738896219485,14.31850086,194.11,193.99,14.31850086]
[1738896219677,19.46990086,194.11,193.99,14.31850086]
[1738896219883,14.31850086,194.11,193.99,14.31850086]
[1738896220285,5.1525,194.07,193.96,14.31850086]
[1738896220586,5.1885242,194.07,194.03,0.032522]
[1738896221580,0.0360242,194.07,194.03,0.032522]
[1738896221780,5.153,194.05,194.03,0.032522]
[1738896222080,0.0360242,194.07,194.03,0.032522]
[1738896223894,5.1527,194.06,194.03,0.032522]
[1738896225591,0.0360242,194.07,194.03,0.032522]
[1738896227894,5.1532,194.05,194.03,0.032522]
[1738896229501,5.1533,194.04,194.03,0.032522]
[1738896230387,14.31850086,194.05,193.94,1.5489]
[1738896230590,5.1538,194.02,193.97,5.1551]
[1738896231199,5.1545,194.0,193.95,5.1555]
[1738896231694,0.03412956,193.99,193.95,5.1555]
[1738896232195,0.03412956,193.99,193.9,14.31850086]
[1738896233894,5.18902956,193.99,193.93,5.1562]
[1738896234192,5.1552,193.97,193.91,5.1566]
[1738896234595,0.03412956,193.99,193.9,14.31850086]
[1738896235295,5.1554,193.96,193.9,14.31850086]
[1738896235694,0.03933896,193.95,193.9,14.31850086]
[1738896236399,0.03933896,193.95,193.9,19.47550086]
[1738896237596,0.03933896,193.95,193.91,5.1567]
[1738896241103,0.03933896,193.95,193.9,5.157]
[1738896241604,0.03933896,193.95,193.87,19.08290086]
[1738896242205,0.03933896,193.95,193.87,17.52600086]
[1738896242404,0.03933896,193.95,193.87,15.98160086]
[1738896242805,5.19513896,193.95,193.89,5.1572]
[1738896244610,9.22924571,193.95,193.88,9.18990675]
[1738896244813,0.03933896,193.95,193.9,9.18990675]
[1738896245013,9.22924571,193.95,193.9,9.18990675]
[1738896245913,9.22924571,193.95,193.9,14.34670675]
[1738896246315,9.22924571,193.95,193.9,5.1568]
[1738896246710,9.22924571,193.95,193.88,9.18990675]
[1738896246911,14.38494571,193.95,193.88,14.34720675]
[1738896247110,9.22924571,193.95,193.88,14.34720675]
[1738896248913,5.156,193.94,193.88,14.34720675]
[1738896249513,9.18990675,193.93,193.86,9.18990675]
[1738896249716,14.34610675,193.93,193.87,5.1578]
[1738896250018,0.03587495,193.91,193.87,5.1578]
[1738896251318,0.03587495,193.91,193.88,9.18990675]
[1738896251509,0.03587495,193.91,193.9,14.34690675]
[1738896251821,9.18990675,194.0,193.94,9.18990675]
[1738896252114,9.18990675,194.04,193.96,9.18990675]
[1738896252807,9.22273338,194.02,193.98,0.03854142]
[1738896253618,0.03282663,194.02,193.98,0.03854142]
[1738896254017,0.03282663,194.02,194.0,5.1543]
[1738896254213,0.03282663,194.02,194.0,14.34420675]
[1738896256421,0.03282663,194.02,194.0,5.1543]
[1738896256613,0.03282663,194.02,193.98,0.03854142]
[1738896257819,0.03282663,194.02,193.99,5.1546]
[1738896258120,0.03282663,194.02,193.98,0.03854142]
[1738896258922,0.03282663,194.02,194.0,5.1542]
[1738896259511,0.03282663,194.02,193.98,0.03854142]
[1738896259512,0.03282663,194.02,194.01,5.1541]
[1738896259711,0.03282663,194.02,193.98,0.03854142]
[1738896261723,0.03282663,194.02,193.99,5.1543]
[1738896261922,0.03282663,194.02,193.98,0.03854142]
[1738896265528,0.03282663,194.02,193.99,5.1546]
[1738896265727,0.03282663,194.02,193.98,0.03854142]
[1738896266031,5.18662663,194.02,193.98,0.03854142]
[1738896266728,0.03282663,194.02,193.98,0.03854142]
[1738896267731,0.03282663,194.02,193.99,5.1543]
[1738896268336,0.03282663,194.02,193.98,0.03854142]
[1738896270527,5.18662663,194.02,193.98,0.03854142]
[1738896274939,0.03282663,194.02,193.98,0.03854142]
[1738896275837,0.03282663,194.02,193.99,5.1546]
[1738896278042,0.03282663,194.02,193.98,5.19344142]
[1738896278839,0.03282663,194.02,193.98,0.03854142]
[1738896279142,0.03282663,194.02,193.99,9.18170632]
[1738896279642,0.03282663,194.02,193.98,0.03854142]
[1738896282048,9.21453295,194.02,193.98,0.03854142]
[1738896282345,9.18170632,194.0,193.98,0.03854142]
[1738896282743,9.21453295,194.02,193.98,0.03854142]
[1738896283140,14.36853295,194.02,193.98,0.03854142]
[1738896285544,9.21453295,194.02,193.98,0.03854142]
[1738896285755,0.03282663,194.02,193.98,0.03854142]
[1738896285942,0.03282663,194.02,193.99,9.18170632]
[1738896286143,0.03282663,194.02,194.01,9.18170632]
[1738896286846,0.03282663,194.02,194.01,14.33580632]
[1738896287549,0.03282663,194.02,193.99,9.18170632]
[1738896291744,0.03282663,194.02,193.98,5.19344142]
[1738896291956,0.03282663,194.02,193.98,0.03854142]
[1738896292851,9.21453295,194.02,193.98,0.03854142]
[1738896293748,14.36863295,194.02,193.98,0.03854142]
[1738896295951,0.03282663,194.02,193.99,9.18170632]
[1738896296148,0.03282663,194.02,194.01,9.18170632]
[1738896297350,0.03282663,194.02,194.01,14.33580632]
[1738896300654,1.5845,194.08,194.04,9.18170632]
[1738896300846,1.5845,194.08,194.02,9.18170632]
[1738896301754,0.03813432,194.07,194.03,0.03591724]
[1738896301951,15.91850632,194.08,194.0,9.18170632]
[1738896302252,5.19172864,194.07,194.03,0.03265968]
[1738896302447,9.18170632,194.04,194.03,0.03265968]
[1738896302853,9.18170632,194.04,193.96,9.18170632]
[1738896303355,1.5845,194.08,193.93,8.8093013]
[1738896303356,9.18170632,194.0,193.93,7.1371013]
[1738896303651,9.18170632,193.98,193.93,7.1371013]
[1738896303851,14.33660632,193.98,193.91,28.30732899]
[1738896304052,0.03799327,193.97,193.94,0.03505951]
[1738896305756,0.03799327,193.97,193.96,5.1554]
[1738896305957,0.03799327,193.97,193.96,14.33710632]
[1738896306149,10.76620632,194.08,193.96,9.18170632]
[1738896306346,10.71830632,194.12,194.04,14.33490632]
[1738896306653,1.5366,194.12,194.04,5.1532]
[1738896307152,21.34976331,194.1,194.04,5.1532]
[1738896307347,21.38551127,194.1,194.06,0.03440543]
[1738896308757,21.38551127,194.1,194.08,5.1522]
[1738896309254,21.38551127,194.1,194.08,19.48693401]
[1738896309852,0.03574796,194.1,194.08,19.48693401]
[1738896311054,1.5755,194.19,194.12,5.151]
[1738896311862,14.33473401,194.18,194.07,1.6365]
[1738896312056,15.88093401,194.18,194.07,1.6365]
[1738896312359,0.03704371,194.15,194.12,0.03664578]
[1738896318065,0.03704371,194.15,194.12,5.18764578]
[1738896318270,0.03704371,194.15,194.12,0.03664578]
[1738896322968,5.18744371,194.15,194.12,0.03664578]
[1738896324668,0.03704371,194.15,194.12,0.03664578]
[1738896324869,0.03704371,194.15,194.12,14.37137979]
[1738896325777,0.03704371,194.15,194.14,5.1506]
[1738896326871,0.03704371,194.15,194.12,14.37137979]
[1738896327072,0.03704371,194.15,194.12,0.03664578]
[1738896331771,5.18744371,194.15,194.12,0.03664578]
[1738896333674,0.03704371,194.15,194.12,0.03664578]
[1738896333876,0.03704371,194.15,194.12,14.37137979]
[1738896334778,0.03704371,194.15,194.14,5.1506]
[1738896337286,0.03704371,194.15,194.12,14.37137979]
[1738896337585,0.03704371,194.15,194.13,5.1509]
[1738896338285,0.03704371,194.15,194.12,5.18774578]
[1738896340782,0.03704371,194.15,194.14,5.1506]
[1738896341781,17.42873401,194.27,194.2,5.149]
[1738896342890,0.03778775,194.25,194.22,0.03468971]
[1738896344390,0.03778775,194.25,194.22,14.36942372]
[1738896344591,4.7073,194.35,194.22,14.36942372]
[1738896344787,4.7073,194.35,194.25,14.33473401]
[1738896344982,4.7073,194.35,194.22,14.33473401]
[1738896345386,5.1457,194.33,194.23,5.148]
[1738896345689,5.1457,194.33,194.26,0.03415039]
[1738896345894,14.37389765,194.3,194.26,0.03415039]
[1738896346084,14.37389765,194.3,194.16,14.33473401]
[1738896346290,14.33473401,194.27,194.16,14.33473401]
[1738896347293,0.03896193,194.23,194.2,0.03383524]
[1738896349796,5.18726193,194.23,194.2,0.03383524]
[1738896350896,5.1485,194.22,194.2,0.03383524]
[1738896351297,6.7637,194.22,194.2,0.03383524]
[1738896351892,1.6152,194.22,194.2,0.03383524]
[1738896353403,6.7638,194.22,194.2,0.03383524]
[1738896354894,1.6152,194.22,194.03,249.46846117]
[1738896355101,1.6152,194.22,194.14,5.1504]
[1738896355102,5.149,194.2,194.14,5.1504]
[1738896355292,14.33473401,194.21,194.1,14.33473401]
[1738896355698,5.1495,194.19,194.13,5.1508]
[1738896356000,14.33473401,194.21,194.1,14.33473401]
[1738896356196,0.03709051,194.18,194.14,0.03376819]
[1738896356799,5.18679051,194.18,194.14,0.03376819]
[1738896357196,0.03709051,194.18,194.14,0.03376819]
[1738896359503,0.03709051,194.18,194.15,5.1503]
[1738896362713,0.03709051,194.18,194.14,0.03376819]
[1738896362907,1.6454,194.28,194.16,14.33473401]
[1738896363308,6.7924,194.28,194.2,5.1489]
[1738896363815,6.7924,194.28,194.16,14.33473401]
[1738896364014,8.2501,194.32,194.19,14.33473401]
[1738896364218,0.03807818,194.24,194.22,14.33473401]
[1738896364411,1.6454,194.33,194.28,5.1469]
[1738896365714,0.0353264,194.32,194.29,0.03354033]
[1738896370416,14.33473401,194.3,194.19,14.33473401]
[1738896370617,14.33473401,194.3,194.16,17.42843401]
[1738896371121,5.1472,194.27,194.21,5.1485]
[1738896371617,0.03277163,194.26,194.22,5.18626058]
[1738896372218,0.03277163,194.26,194.22,0.03776058]
[1738896372522,5.1477,194.25,194.22,0.03776058]
[1738896372719,0.03277163,194.26,194.22,0.03776058]
[1738896373321,5.1482,194.24,194.22,0.03776058]
[1738896373616,0.03277163,194.26,194.22,0.03776058]
[1738896374218,14.33473401,194.24,194.16,5.1501]
[1738896374413,14.33473401,194.24,194.13,14.33473401]
[1738896375323,14.33473401,194.24,194.11,1.5598]
[1738896375512,0.03688961,194.2,194.17,0.03337615]
[1738896375720,5.1494,194.19,194.17,0.03337615]
[1738896376021,0.03688961,194.2,194.07,42.642063]
[1738896376221,5.1501,194.16,194.11,5.1512]
[1738896376417,5.1501,194.16,194.07,42.642063]
[1738896377223,5.1501,194.16,194.1,0.03852846]
[1738896377224,0.03551224,194.13,194.1,0.03852846]
[1738896377820,0.03551224,194.13,194.1,5.19012846]
[1738896378217,0.03551224,194.13,194.1,0.03852846]
[1738896378726,14.33473401,194.12,194.02,7.1371013]
[1738896378924,14.33473401,194.12,194.02,12.2909013]
[1738896379818,5.1517,194.1,194.02,7.1371013]
[1738896380026,0.03471537,194.09,194.05,0.03568062]
[1738896380924,0.03471537,194.09,194.07,14.33473401]
[1738896381423,9.0896,194.18,194.1,5.1516]
[1738896381625,3.94,194.18,194.07,14.33473401]
[1738896381822,3.94,194.18,194.1,14.33473401]
[1738896382130,3.94,194.18,194.07,14.33473401]
[1738896382322,18.27473401,194.18,194.07,14.33473401]
[1738896382635,0.03753113,194.14,194.11,0.03503791]
[1738896387233,0.03753113,194.14,194.13,5.1509]
[1738896387428,3.2708,194.22,194.13,19.48563401]
[1738896387732,18.27473401,194.27,194.13,14.33473401]
[1738896388025,5.148,194.24,194.13,14.33473401]
[1738896388636,0.03399116,194.2,194.17,0.03549315]
[1738896388832,0.03399116,194.2,194.17,5.18529315]
[1738896390232,0.03399116,194.2,194.17,0.03549315]
[1738896391831,0.03399116,194.2,194.17,5.18529315]
[1738896392834,0.03399116,194.2,194.17,0.03549315]
[1738896399243,14.33473401,194.18,194.07,14.33473401]
[1738896400444,0.03880298,194.15,194.11,0.03754335]
[1738896400640,14.37353699,194.15,194.11,0.03754335]
[1738896400944,14.33473401,194.12,194.03,1.5468]
[1738896401244,5.1515,194.11,194.05,5.153]
[1738896402146,0.03620302,194.1,194.06,0.03703195]
[1738896407149,0.03620302,194.1,194.07,14.33473401]
[1738896407943,0.03620302,194.1,194.09,5.1519]
[1738896408343,5.1487,194.22,194.16,5.1501]
[1738896408544,18.27473401,194.24,194.1,14.33473401]
[1738896408847,5.1496,194.18,194.1,14.33473401]
[1738896409143,14.33473401,194.21,194.07,17.57433401]
[1738896409345,0.03491039,194.14,194.11,0.03512048]
[1738896409645,5.1502,194.16,194.11,0.03512048]
[1738896409845,0.03674405,194.14,194.11,0.03512048]
[1738896416547,5.18744405,194.14,194.11,0.03512048]
[1738896419139,0.03674405,194.14,194.11,0.03512048]
[1738896420647,5.1509,194.13,194.11,0.03512048]
[1738896421043,0.03674405,194.14,194.11,0.03512048]
[1738896422146,0.03674405,194.14,194.11,5.18652048]
[1738896422346,0.03674405,194.14,194.11,0.03512048]
[1738896424150,5.151,194.13,194.11,0.03512048]
[1738896425347,0.03674405,194.14,194.11,0.03512048]
[1738896426052,0.03674405,194.14,194.13,5.1509]
[1738896426253,3.3225,194.23,194.11,14.36985449]
[1738896426451,3.3225,194.23,194.14,14.33473401]
[1738896427343,0.03285229,194.2,194.17,0.03863972]
[1738896427954,63.642386,194.34,194.17,0.03863972]
[1738896427955,56.80017272,194.27,194.17,14.37337373]
[1738896428343,56.80017272,194.27,194.2,14.33473401]
[1738896428660,56.80017272,194.27,194.17,14.33473401]
[1738896429355,0.03261407,194.23,194.2,0.03434653]
[1738896430857,0.03261407,194.23,194.2,5.18334653]
[1738896431545,0.03261407,194.23,194.2,0.03434653]
[1738896431750,0.03261407,194.23,194.22,5.1485]
[1738896432255,8.2849,194.32,194.25,5.1477]
[1738896432654,3.1389,194.32,194.21,1.5804]
[1738896433262,0.03539466,194.28,194.25,0.03457612]
[1738896436052,0.03539466,194.28,194.26,5.1473]
[1738896436850,0.03539466,194.28,194.25,0.03457612]
[1738896438056,5.1472,194.27,194.25,0.03457612]
[1738896438349,14.37012867,194.28,194.25,0.03457612]
[1738896438557,0.03539466,194.28,194.25,0.03457612]
[1738896441557,5.18229466,194.28,194.25,0.03457612]
[1738896442056,0.03539466,194.28,194.25,0.03457612]
[1738896444767,0.03539466,194.28,194.25,5.18217612]
[1738896448768,0.03539466,194.28,194.26,5.1474]
[1738896448968,0.03539466,194.28,194.25,0.03457612]
[1738896449870,0.03539466,194.28,194.27,5.1472]
[1738896450473,6.7935,194.36,194.25,0.03457612]
[1738896450673,6.7935,194.36,194.29,5.1464]
[1738896450866,1.6485,194.36,194.26,14.33473401]
[1738896451174,5.1445,194.38,194.26,14.33473401]
[1738896451472,19.47853401,194.4,194.33,5.1455]
[1738896451670,0.03910808,194.34,194.33,5.1455]
[1738896451971,0.0372542,194.35,194.33,5.1455]
[1738896452373,0.0372542,194.35,194.32,0.03462179]
[1738896452970,14.33473401,194.34,194.32,0.03462179]
[1738896453171,15.89463401,194.34,194.32,0.03462179]
[1738896453872,19.81463401,194.34,194.21,1.6603]
[1738896454074,14.33473401,194.3,194.21,1.6603]
[1738896454271,14.33473401,194.3,194.17,14.33473401]
[1738896454468,5.1473,194.27,194.17,14.33473401]
[1738896454672,14.33473401,194.3,194.17,14.33473401]
[1738896455068,0.0391711,194.25,194.22,0.03496769]
[1738896458977,5.1868711,194.25,194.22,0.03496769]
[1738896459178,0.0391711,194.25,194.22,0.03496769]
[1738896461282,5.148,194.24,194.22,0.03496769]
[1738896462683,0.0391711,194.25,194.22,0.03496769]
[1738896462684,5.1482,194.23,194.22,0.03496769]
[1738896463182,0.0391711,194.25,194.14,19.48513401]
[1738896463183,5.1491,194.2,194.14,19.48513401]
[1738896464080,0.03418085,194.19,194.15,0.03757482]
[1738896466386,0.03418085,194.19,194.17,5.1497]
[1738896466585,0.03418085,194.19,194.17,19.48443401]
[1738896468088,0.03418085,194.19,194.17,14.33473401]
[1738896468287,0.03418085,194.19,194.18,5.1496]
[1738896468985,14.33473401,194.3,194.17,14.33473401]
[1738896469184,5.1467,194.29,194.21,5.1486]
[1738896469687,5.1467,194.29,194.17,14.33473401]
[1738896470083,3.236,194.31,194.2,14.33473401]
[1738896470293,0.03911547,194.25,194.24,5.148]
[1738896470485,21.34976331,194.33,194.23,14.33473401]
[1738896470682,0.03792152,194.26,194.23,14.37258455]
[1738896470988,21.34976331,194.33,194.28,5.1466]
[1738896471183,21.34976331,194.33,194.25,14.33473401]
[1738896471389,21.34976331,194.33,194.27,5.1471]
[1738896471682,21.34976331,194.33,194.25,14.33473401]
[1738896471990,0.03251417,194.31,194.28,5.1467]
[1738896472285,0.03251417,194.31,194.27,0.03940931]
[1738896476381,5.17871417,194.31,194.27,0.03940931]
[1738896476788,0.03251417,194.31,194.27,0.03940931]
[1738896477890,5.1467,194.29,194.27,0.03940931]
[1738896481195,1.6642,194.3,194.27,0.03940931]
[1738896481496,0.03251417,194.31,194.27,0.03940931]
[1738896481696,0.03251417,194.31,194.28,5.1468]
[1738896481994,0.03251417,194.31,194.27,0.03940931]
[1738896482897,0.03251417,194.31,194.29,5.1464]
[1738896483898,0.03251417,194.31,194.27,0.03940931]
[1738896484094,0.03251417,194.31,194.3,5.1464]
[1738896484889,1.5617,194.41,194.36,5.1447]
[1738896485391,1.5617,194.41,194.32,14.33473401]
[1738896485693,1.5617,194.41,194.32,5.1457]
[1738896486097,0.03759872,194.38,194.35,0.03940595]
[1738896487900,5.18189872,194.38,194.35,0.03940595]
[1738896489501,0.03759872,194.38,194.35,0.03940595]
[1738896489699,0.03759872,194.38,194.35,14.37413996]
[1738896490103,0.03759872,194.38,194.37,5.1445]
[1738896492103,0.03759872,194.38,194.35,5.18420595]
[1738896492303,0.03759872,194.38,194.35,0.03940595]
[1738896496908,0.03759872,194.38,194.35,5.18440595]
[1738896497105,0.03759872,194.38,194.35,14.37413996]
[1738896497410,5.1419,194.47,194.41,5.1434]
[1738896498018,1.5259,194.48,194.37,14.33473401]
[1738896498504,0.03872678,194.44,194.41,0.03510453]
[1738896498810,5.143,194.43,194.41,0.03510453]
[1738896500509,5.1432,194.42,194.41,0.03510453]
[1738896503907,5.1438,194.4,194.35,5.1449]
[1738896504311,5.1438,194.4,194.32,14.33473401]
[1738896505014,0.03669368,194.38,194.34,0.03923972]
[1738896505817,0.03669368,194.38,194.36,5.1447]
[1738896506116,0.03669368,194.38,194.34,0.03923972]
[1738896507416,0.03669368,194.38,194.36,5.1445]
[1738896507609,0.03669368,194.38,194.34,0.03923972]
[1738896508216,0.03669368,194.38,194.35,14.33473401]
[1738896508611,0.03669368,194.38,194.37,5.1445]
[1738896510020,0.03669368,194.38,194.35,5.1448]
[1738896510315,0.03669368,194.38,194.34,0.03923972]
[1738896510620,0.03669368,194.38,194.35,5.145]
[1738896510915,0.03669368,194.38,194.34,0.03923972]
[1738896511113,0.03669368,194.38,194.36,5.1445]
[1738896512315,0.03669368,194.38,194.35,5.145]
[1738896514208,0.03669368,194.38,194.34,0.03923972]
[1738896514411,0.03669368,194.38,194.37,14.33473401]
[1738896514816,0.03669368,194.38,194.37,19.47923401]
[1738896516325,1.5052,194.49,194.37,14.33473401]
[1738896516517,1.5052,194.49,194.42,14.33473401]
[1738896516824,3.0564,194.54,194.42,14.33473401]
[1738896517019,4.5928,194.54,194.42,14.33473401]
[1738896517518,0.03704091,194.5,194.46,0.0388078]
[1738896519221,5.17824091,194.5,194.46,0.0388078]
[1738896520221,0.03704091,194.5,194.46,0.0388078]
[1738896520623,14.37177492,194.5,194.46,0.0388078]
[1738896521216,0.03704091,194.5,194.46,0.0388078]
[1738896522228,5.17834091,194.5,194.46,0.0388078]
[1738896524827,5.1414,194.49,194.46,0.0388078]
[1738896526328,0.03704091,194.5,194.46,0.0388078]
[1738896526534,0.03704091,194.5,194.48,5.1416]
[1738896528933,0.03704091,194.5,194.46,0.0388078]
[1738896529134,0.03704091,194.5,194.46,5.1809078]
[1738896531130,0.03704091,194.5,194.46,0.0388078]
[1738896531434,0.03704091,194.5,194.49,5.1413]
[1738896533831,8.2423,194.59,194.47,15.95783401]
[1738896534137,3.1034,194.59,194.5,14.33473401]
[1738896534731,3.1034,194.59,194.54,5.1399]
[1738896534931,1.5126,194.59,194.54,5.1399]
[1738896535130,0.03703349,194.58,194.55,0.03370879]
[1738896538037,0.03703349,194.58,194.55,5.17320879]
[1738896541037,0.03703349,194.58,194.55,0.03370879]
[1738896541239,14.33473401,194.68,194.57,14.33473401]
[1738896541540,1.5558,194.69,194.6,14.33473401]
[1738896541737,1.5558,194.69,194.64,5.1374]
[1738896541932,1.5558,194.69,194.63,14.33473401]
[1738896542131,71.13490673,194.77,194.63,14.33473401]
[1738896542338,5.1351,194.73,194.66,19.47163401]
[1738896542538,0.03543014,194.71,194.68,0.03327716]
[1738896542939,5.1358,194.7,194.68,0.03327716]
[1738896543139,0.03543014,194.71,194.68,0.03327716]
[1738896543540,5.1358,194.7,194.68,0.03327716]
[1738896543841,0.03543014,194.71,194.68,0.03327716]
[1738896544233,5.1361,194.69,194.68,0.03327716]
[1738896544832,5.17113014,194.71,194.68,0.03327716]
[1738896545042,0.03543014,194.71,194.68,0.03327716]
[1738896546544,5.1361,194.69,194.68,0.03327716]
[1738896548246,1.66943014,194.71,194.68,0.03327716]
[1738896548834,6.80503014,194.71,194.68,0.03327716]
[1738896549036,1.66943014,194.71,194.68,0.03327716]
[1738896550740,5.1361,194.69,194.68,0.03327716]
[1738896551646,1.66943014,194.71,194.61,5.1379]
[1738896551846,5.1366,194.67,194.61,5.1379]
[1738896552343,1.634,194.71,194.6,14.33473401]
[1738896552648,5.1369,194.66,194.6,5.1384]
[1738896552850,5.1369,194.66,194.64,0.03282153]
[1738896553644,0.03728941,194.67,194.52,1.5038]
[1738896553645,14.37202342,194.67,194.54,14.33473401]
[1738896554047,14.37202342,194.67,194.55,5.1397]
[1738896554048,5.1378,194.63,194.55,5.1397]
[1738896554244,3.92,194.66,194.55,5.1397]
[1738896554445,1.6456,194.65,194.55,5.1397]
[1738896554956,1.6456,194.65,194.58,0.03774783]
[1738896554957,0.03290216,194.62,194.58,0.03774783]
[1738896555855,5.1387,194.6,194.58,0.03774783]
[1738896556052,0.03290216,194.62,194.58,0.03774783]
[1738896556249,1.5266,194.61,194.58,0.03774783]
[1738896556450,15.86133401,194.61,194.48,14.33473401]
[1738896556952,5.1396,194.56,194.48,14.33473401]
[1738896557252,15.86133401,194.61,194.48,19.47613401]
[1738896557650,0.03341075,194.56,194.53,0.03632843]
[1738896559050,5.1398,194.55,194.53,0.03632843]
[1738896559351,0.03341075,194.56,194.53,0.03632843]
[1738896560053,5.14,194.54,194.53,0.03632843]
[1738896560251,5.14,194.54,194.45,15.89323401]
[1738896560450,14.33473401,194.55,194.42,14.33473401]
[1738896560656,5.1414,194.49,194.42,14.33473401]
[1738896561455,0.03431742,194.47,194.44,0.03697546]
[1738896562657,5.17621742,194.47,194.44,0.03697546]
[1738896562850,0.03431742,194.47,194.44,0.03697546]
[1738896563455,5.1424,194.45,194.44,0.03697546]
[1738896563649,0.03431742,194.47,194.44,0.03697546]
[1738896565758,1.5209,194.54,194.45,14.33473401]
[1738896566263,5.1411,194.5,194.44,5.17937546]
[1738896566863,0.03259755,194.49,194.44,5.17937546]
[1738896567361,5.17399755,194.49,194.44,0.03697546]
[1738896567765,0.03259755,194.49,194.44,0.03697546]
[1738896568766,0.03259755,194.49,194.44,5.17957546]
[1738896572864,0.03259755,194.49,194.44,0.03697546]
[1738896573063,0.03259755,194.49,194.48,5.1416]
[1738896573464,5.1395,194.56,194.5,5.141]
[1738896574167,5.1395,194.56,194.51,5.1408]
[1738896574569,0.03445637,194.55,194.52,0.03457004]
[1738896581474,5.17425637,194.55,194.52,0.03457004]
[1738896581680,0.03445637,194.55,194.52,0.03457004]
[1738896581881,14.36919038,194.55,194.42,14.33473401]
[1738896582076,14.33473401,194.55,194.42,14.33473401]
[1738896582975,14.33473401,194.52,194.47,0.03669807]
[1738896583275,5.17975444,194.5,194.47,0.03669807]
[1738896583482,0.03845444,194.5,194.47,0.03669807]
[1738896584482,5.1416,194.48,194.47,0.03669807]